bitfinex-derivatives/quotes_SOLF0:USTF0_20250215
["timestamp","ask_amount","ask_price","bid_price","bid_amount"]
[1739641414875,14.37129546,193.63,193.61,0.03543475]
[1739641415081,9.20759546,193.63,193.61,0.03543475]
[1739641416082,0.03287226,193.64,193.61,0.03543475]
[1739641418485,5.19627226,193.64,193.61,0.03543475]
[1739641418688,9.20759546,193.63,193.61,0.03543475]
[1739641419380,14.37149546,193.63,193.61,0.03543475]
[1739641419583,9.20759546,193.63,193.61,0.03543475]
[1739641421278,14.37129546,193.63,193.61,0.03543475]
[1739641421683,9.20759546,193.63,193.61,0.03543475]
[1739641421878,5.1639,193.62,193.61,0.03543475]
[1739641422078,9.20759546,193.63,193.61,0.03543475]
[1739641422886,14.37149546,193.63,193.61,0.03543475]
[1739641423288,9.20759546,193.63,193.61,0.03543475]
[1739641424185,14.37129546,193.63,193.61,0.03543475]
[1739641429794,5.1639,193.62,193.61,0.03543475]
[1739641430196,9.20759546,193.63,193.61,0.03543475]
[1739641431097,14.37139546,193.63,193.61,0.03543475]
[1739641431592,9.20759546,193.63,193.61,0.03543475]
[1739641432297,14.37129546,193.63,193.61,0.03543475]
[1739641432498,9.20759546,193.63,193.61,0.03543475]
[1739641433197,5.1639,193.62,193.61,0.03543475]
[1739641440103,14.37129546,193.63,193.61,0.03543475]
[1739641440707,9.20759546,193.63,193.61,0.03543475]
[1739641441403,9.20759546,193.63,193.61,5.19943475]
[1739641441599,9.20759546,193.63,193.61,0.03543475]
[1739641442105,0.03287226,193.64,193.61,0.03543475]
[1739641442403,0.03287226,193.64,193.62,5.1639]
[1739641443504,0.03287226,193.64,193.61,5.19963475]
[1739641444001,0.03287226,193.64,193.61,0.03543475]
[1739641444205,9.20759546,193.63,193.61,0.03543475]
[1739641451010,9.20759546,193.63,193.61,5.19963475]
[1739641451209,9.20759546,193.63,193.61,0.03543475]
[1739641452412,0.03287226,193.64,193.61,0.03543475]
[1739641454509,9.20759546,193.63,193.61,0.03543475]
[1739641455111,5.1639,193.62,193.61,0.03543475]
[1739641457511,5.1644,193.61,193.55,5.1657]
[1739641457711,9.20759546,193.57,193.55,5.1657]
[1739641459419,9.20759546,193.57,193.55,5.1656]
[1739641459715,9.20759546,193.57,193.54,0.03365992]
[1739641460416,9.20759546,193.57,193.56,5.1655]
[1739641461219,0.03481212,193.58,193.57,5.1653]
[1739641468420,9.20759546,193.61,193.54,9.24125538]
[1739641468421,9.20759546,193.61,193.6,5.1645]
[1739641470620,0.032909,193.62,193.59,0.03295122]
[1739641470924,0.032909,193.62,193.61,5.1642]
[1739641471319,0.032909,193.62,193.59,0.03295122]
[1739641471521,9.20759546,193.61,193.6,5.1643]
[1739641472725,0.032909,193.62,193.59,0.03295122]
[1739641472925,9.20759546,193.61,193.59,0.03295122]
[1739641474323,9.20759546,193.61,193.59,5.19765122]
[1739641477428,9.20759546,193.61,193.6,5.1645]
[1739641478828,0.032909,193.62,193.61,5.1642]
[1739641486436,0.032909,193.62,193.59,0.03295122]
[1739641487939,0.032909,193.62,193.6,5.1643]
[1739641489944,0.032909,193.62,193.61,5.1642]
[1739641491343,9.20759546,193.65,193.63,5.1636]
[1739641491542,9.20759546,193.65,193.6,9.20759546]
[1739641491942,9.20759546,193.65,193.61,5.1642]
[1739641492146,9.20759546,193.65,193.6,9.20759546]
[1739641492648,0.0352892,193.64,193.59,3.08025122]
[1739641493147,0.0352892,193.64,193.61,5.1642]
[1739641494243,5.1987892,193.64,193.61,5.1642]
[1739641494448,9.20759546,193.63,193.6,5.1644]
[1739641495147,9.20759546,193.63,193.61,5.1641]
[1739641498547,9.20759546,193.63,193.6,5.1644]
[1739641499449,14.37139546,193.63,193.59,8.24495122]
[1739641500252,9.20759546,193.61,193.59,8.24495122]
[1739641501343,9.20759546,193.61,193.6,5.1645]
[1739641501843,9.20759546,193.63,193.59,3.08025122]
[1739641502050,9.20759546,193.63,193.61,5.164]
[1739641507960,9.20759546,193.63,193.62,5.1639]
[1739641511059,14.37129546,193.63,193.59,6.72575122]
[1739641511268,9.20759546,193.6,193.59,5.19765122]
[1739641511462,9.20759546,193.62,193.59,0.03295122]
[1739641512064,9.20759546,193.62,193.6,5.1645]
[1739641514170,9.20759546,193.62,193.59,5.19765122]
[1739641515369,9.20759546,193.6,193.59,0.03295122]
[1739641519074,14.37209546,193.6,193.59,0.03295122]
[1739641522877,5.1653,193.57,193.5,12.47639546]
[1739641523069,9.20759546,193.55,193.5,3.2688]
[1739641523270,9.20759546,193.55,193.53,5.1663]
[1739641525481,9.20759546,193.55,193.54,5.1661]
[1739641526585,0.03779397,193.56,193.55,5.1658]
[1739641529784,9.20759546,193.61,193.54,9.20759546]
[1739641530085,9.20759546,193.61,193.6,5.1643]
[1739641531786,0.03479858,193.62,193.59,0.03371019]
[1739641531987,0.03479858,193.62,193.61,5.1642]
[1739641535180,9.20759546,193.67,193.64,5.1634]
[1739641535992,9.20759546,193.67,193.63,5.1636]
[1739641536387,9.20759546,193.67,193.63,5.19634984]
[1739641538090,9.20759546,193.67,193.64,5.1633]
[1739641538290,9.20759546,193.67,193.63,0.03274984]
[1739641538490,9.20759546,193.67,193.63,5.19634984]
[1739641539890,9.20759546,193.67,193.64,5.1633]
[1739641540992,14.37029546,193.67,193.63,5.19634984]
[1739641541493,9.20759546,193.65,193.63,5.19634984]
[1739641545402,9.20759546,193.65,193.63,0.03274984]
[1739641546000,5.1634,193.64,193.63,0.03274984]
[1739641547697,9.20759546,193.65,193.63,0.03274984]
[1739641549798,9.20759546,193.65,193.63,5.19634984]
[1739641550502,9.20759546,193.65,193.63,0.03274984]
[1739641550901,5.1634,193.64,193.63,0.03274984]
[1739641551198,9.20759546,193.65,193.63,0.03274984]
[1739641551702,14.37079546,193.65,193.63,0.03274984]
[1739641552497,9.20759546,193.65,193.64,5.1634]
[1739641557806,9.20759546,193.65,193.63,0.03274984]
[1739641558106,9.20759546,193.65,193.63,5.19634984]
[1739641561109,9.20759546,193.65,193.64,5.1634]
[1739641561312,9.20759546,193.65,193.63,0.03274984]
[1739641562511,9.20759546,193.65,193.64,5.1634]
[1739641563212,9.20759546,193.67,193.65,5.163]
[1739641564508,9.20759546,193.67,193.64,0.03820859]
[1739641565304,9.20759546,193.67,193.65,5.1631]
[1739641565611,9.20759546,193.67,193.64,0.03820859]
[1739641565911,9.20759546,193.67,193.65,5.1629]
[1739641566406,9.20759546,193.69,193.64,9.24580405]
[1739641566612,9.20759546,193.71,193.66,9.20759546]
[1739641567009,9.20759546,193.71,193.68,5.1621]
[1739641567312,9.20759546,193.71,193.67,0.0374139]
[1739641567513,9.20759546,193.71,193.7,5.1618]
[1739641569114,9.20759546,193.71,193.67,0.0374139]
[1739641569312,9.20759546,193.71,193.68,5.1623]
[1739641569514,9.20759546,193.71,193.67,0.0374139]
[1739641571215,9.20759546,193.75,193.72,5.1613]
[1739641571610,9.20759546,193.75,193.72,5.19706304]
[1739641572416,9.20759546,193.75,193.73,5.161]
[1739641574016,9.20759546,193.75,193.72,0.03576304]
[1739641574217,9.20759546,193.77,193.72,0.03576304]
[1739641574806,9.20759546,193.77,193.75,5.1604]
[1739641575212,9.20759546,193.77,193.72,0.03576304]
[1739641575411,9.20759546,193.77,193.74,5.1607]
[1739641576108,9.20759546,193.77,193.75,5.1604]
[1739641577615,9.20759546,193.81,193.74,9.20759546]
[1739641577814,9.20759546,193.81,193.76,9.20759546]
[1739641578013,9.20759546,193.83,193.76,9.24526951]
[1739641578211,14.36599546,193.83,193.78,5.1595]
[1739641578418,14.36599546,193.83,193.76,9.24526951]
[1739641579020,14.36599546,193.83,193.78,5.1596]
[1739641579522,9.20759546,193.83,193.78,9.20759546]
[1739641580111,9.20759546,193.85,193.8,9.20759546]
[1739641580324,9.20759546,193.87,193.8,9.20759546]
[1739641580817,9.20759546,193.87,193.81,0.03573181]
[1739641581018,5.1576,193.86,193.82,5.1584]
[1739641582514,5.1576,193.86,193.81,0.03573181]
[1739641583216,9.20759546,193.85,193.81,0.03573181]
[1739641583819,5.1583,193.84,193.81,0.03573181]
[1739641584020,9.20759546,193.85,193.81,0.03573181]
[1739641584515,9.20759546,193.83,193.81,0.03573181]
[1739641584716,9.20759546,193.83,193.76,9.20759546]
[1739641584919,14.36649546,193.81,193.8,0.03393563]
[1739641585319,14.36649546,193.81,193.79,0.03440122]
[1739641586723,5.1589,193.81,193.79,0.03440122]
[1739641586918,5.1591,193.8,193.79,0.03440122]
[1739641589529,9.20759546,193.81,193.79,0.03440122]
[1739641590028,9.20759546,193.83,193.79,0.03440122]
[1739641590225,14.36589546,193.83,193.76,9.20759546]
[1739641590529,14.36589546,193.83,193.79,0.03676979]
[1739641591730,9.20759546,193.87,193.8,9.20759546]
[1739641592129,5.1576,193.86,193.82,14.40455138]
[1739641592327,5.1576,193.86,193.82,14.36619546]
[1739641592523,9.20759546,193.87,193.82,14.36619546]
[1739641592724,9.20759546,193.87,193.82,14.40183698]
[1739641592928,5.1573,193.87,193.82,14.40183698]
[1739641593331,9.20759546,193.89,193.84,14.36549546]
[1739641593529,14.36439546,193.89,193.84,9.20759546]
[1739641594129,9.20759546,193.89,193.84,9.20759546]
[1739641594328,5.157,193.88,193.84,9.20759546]
[1739641594628,9.20759546,193.89,193.85,5.1578]
[1739641595331,9.20759546,193.89,193.84,9.20759546]
[1739641595532,5.157,193.88,193.84,9.20759546]
[1739641595832,5.157,193.88,193.83,5.1583]
[1739641597131,5.1576,193.86,193.82,9.24323698]
[1739641597334,5.1576,193.86,193.82,0.03564152]
[1739641597634,5.1579,193.85,193.82,0.03564152]
[1739641598733,9.20759546,193.87,193.82,0.03564152]
[1739641598932,14.36509546,193.87,193.82,5.19424152]
[1739641599325,5.1577,193.86,193.82,0.03564152]
[1739641600135,14.36489546,193.87,193.82,5.19404152]
[1739641600330,9.20759546,193.87,193.82,5.19404152]
[1739641601225,14.36489546,193.87,193.82,5.19404152]
[1739641601431,9.20759546,193.87,193.82,5.19404152]
[1739641601636,14.36489546,193.87,193.83,5.1583]
[1739641602439,5.1576,193.86,193.82,9.24323698]
[1739641602639,9.20759546,193.87,193.82,9.24323698]
[1739641603039,14.36489546,193.87,193.83,5.1581]
[1739641605042,5.1576,193.86,193.82,14.40183698]
[1739641605440,9.20759546,193.87,193.82,9.24323698]
[1739641606842,9.20759546,193.87,193.84,5.1581]
[1739641608934,5.1572,193.88,193.84,5.1581]
[1739641612240,14.36439546,193.89,193.85,5.1575]
[1739641612545,9.20759546,193.91,193.84,9.20759546]
[1739641612943,9.20759546,193.91,193.86,0.03681837]
[1739641613845,14.36389546,193.91,193.87,5.1571]
[1739641614144,9.20759546,193.91,193.86,9.24441383]
[1739641615044,9.20759546,193.91,193.88,5.157]
[1739641616253,9.20759546,193.91,193.86,9.24441383]
[1739641616556,9.20759546,193.89,193.86,0.03681837]
[1739641617758,9.20759546,193.87,193.86,0.03681837]
[1739641619153,14.36489546,193.87,193.86,0.03681837]
[1739641621657,5.1584,193.83,193.79,5.1592]
[1739641621862,9.20759546,193.82,193.79,5.1592]
[1739641622559,14.36629546,193.82,193.78,5.1596]
[1739641622759,14.36629546,193.82,193.79,0.03415991]
[1739641622760,9.20759546,193.8,193.79,0.03415991]
[1739641623565,14.36679546,193.8,193.79,0.03415991]
[1739641623856,9.20759546,193.8,193.7,9.20759546]
[1739641624065,9.20759546,193.76,193.72,5.161]
[1739641624267,9.20759546,193.76,193.7,9.20759546]
[1739641624564,9.20759546,193.74,193.68,9.20759546]
[1739641625065,0.03593263,193.73,193.7,5.1615]
[1739641626459,0.03593263,193.73,193.71,5.1614]
[1739641627770,0.03593263,193.73,193.7,5.1618]
[1739641629062,5.19723263,193.73,193.69,0.03537051]
[1739641629269,9.20759546,193.72,193.69,0.03537051]
[1739641630069,14.36889546,193.72,193.69,0.03537051]
[1739641630872,0.03593263,193.73,193.7,9.20759546]
[1739641631073,0.03593263,193.73,193.72,9.20759546]
[1739641631473,0.03593263,193.73,193.72,14.36889546]
[1739641631665,9.20759546,193.82,193.72,9.20759546]
[1739641631866,9.20759546,193.82,193.76,9.20759546]
[1739641632275,9.20759546,193.84,193.78,9.20759546]
[1739641632674,9.20759546,193.86,193.8,9.20759546]
[1739641632872,0.03491056,193.83,193.8,9.20759546]
[1739641633068,0.03491056,193.83,193.8,14.36649546]
[1739641633269,0.03491056,193.83,193.82,9.20759546]
[1739641633677,0.03491056,193.83,193.82,14.36619546]
[1739641633980,193.0,193.89,193.82,9.20759546]
[1739641634175,193.0,193.89,193.84,14.36559546]
[1739641634471,14.36409546,193.9,193.84,14.36559546]
[1739641634676,9.20759546,193.9,193.84,9.20759546]
[1739641634879,5.1568,193.89,193.82,9.20759546]
[1739641635182,9.20759546,193.9,193.82,9.20759546]
[1739641635385,9.20759546,193.9,193.84,0.03781028]
[1739641636576,5.1567,193.89,193.84,5.19591028]
[1739641636775,9.20759546,193.9,193.84,14.40350574]
[1739641636972,14.36409546,193.9,193.84,14.40350574]
[1739641637573,9.20759546,193.9,193.84,14.40350574]
[1739641637779,5.1569,193.89,193.84,9.24540574]
[1739641639071,5.1569,193.89,193.84,14.40350574]
[1739641641380,5.1569,193.89,193.85,5.1577]
[1739641643779,5.1569,193.89,193.84,14.40340574]
[1739641644180,5.1569,193.89,193.84,9.24540574]
[1739641644580,9.20759546,193.9,193.84,9.24540574]
[1739641644879,9.20759546,193.92,193.86,9.20759546]
[1739641645079,9.20759546,193.92,193.84,9.20759546]
[1739641645281,9.20759546,193.92,193.87,0.03595435]
[1739641646286,5.1567,193.9,193.87,0.03595435]
[1739641646881,9.20759546,193.92,193.87,0.03595435]
[1739641647084,14.36379546,193.92,193.87,5.19315435]
[1739641647287,9.20759546,193.92,193.87,5.19315435]
[1739641648285,5.1563,193.91,193.87,5.19315435]
[1739641648482,9.20759546,193.92,193.88,5.1569]
[1739641648789,9.20759546,193.94,193.88,9.20759546]
[1739641649087,14.36269546,193.96,193.91,5.156]
[1739641649487,14.36269546,193.96,193.92,0.03911271]
[1739641649987,9.20759546,193.96,193.92,0.03911271]
[1739641650686,5.1552,193.95,193.92,0.03911271]
[1739641651286,5.1557,193.93,193.92,0.03911271]
[1739641651790,9.20759546,193.96,193.92,0.03911271]
[1739641651990,5.1554,193.94,193.92,0.03911271]
[1739641654182,5.1557,193.93,193.92,0.03911271]
[1739641655792,5.1555,193.94,193.92,0.03911271]
[1739641656186,9.20759546,193.96,193.92,0.03911271]
[1739641656593,5.1557,193.93,193.92,0.03911271]
[1739641676503,5.1557,193.93,193.92,1.271e-05]
[1739641676700,5.1573,193.87,193.8,9.20759546]
[1739641677001,9.20759546,193.87,193.82,5.1584]
[1739641677198,14.36539546,193.85,193.8,9.20759546]
[1739641677703,14.36539546,193.85,193.8,14.36669546]
[1739641678004,0.03904226,193.84,193.81,0.036822]
[1739641680007,0.03904226,193.84,193.82,14.36609546]
[1739641680206,0.03904226,193.84,193.82,9.20759546]
[1739641680405,0.03904226,193.84,193.82,14.36619546]
[1739641680607,0.03904226,193.84,193.81,0.036822]
[1739641681000,9.20759546,193.83,193.81,0.036822]
[1739641681398,5.1586,193.82,193.81,0.036822]
[1739641687912,0.03904226,193.84,193.81,0.036822]
[1739641688411,5.19724226,193.84,193.81,0.036822]
[1739641689003,5.1586,193.82,193.81,0.036822]
[1739641693310,5.1586,193.82,193.81,2.2e-05]
[1739641693513,9.20759546,193.83,193.72,9.20759546]
[1739641693716,14.36779546,193.77,193.72,9.20759546]
[1739641693915,9.20759546,193.77,193.72,9.20759546]
[1739641694413,9.20759546,193.77,193.71,5.1613]
[1739641694414,9.20759546,193.77,193.7,9.20759546]
[1739641694617,0.03300135,193.76,193.72,0.03704372]
[1739641695914,0.03300135,193.76,193.72,5.19824372]
[1739641696818,5.1605,193.75,193.72,0.03704372]
[1739641697014,0.03300135,193.76,193.72,0.03704372]
[1739641697517,0.03300135,193.76,193.72,5.19804372]
[1739641698715,0.03300135,193.76,193.73,5.161]
[1739641699217,0.03300135,193.76,193.74,9.20759546]
[1739641699807,14.36669546,193.81,193.74,9.20759546]
[1739641700013,9.20759546,193.81,193.76,9.20759546]
[1739641700817,9.20759546,193.81,193.75,3.1401]
[1739641701016,9.20759546,193.79,193.77,0.03393601]
[1739641702118,5.1597,193.78,193.77,0.03393601]
[1739641705615,9.20759546,193.79,193.66,9.20759546]
[1739641705917,9.20759546,193.71,193.66,9.20759546]
[1739641706819,0.03757259,193.7,193.67,0.03294214]
[1739641707020,0.03757259,193.7,193.67,5.19554214]
[1739641707621,0.03757259,193.7,193.67,0.03294214]
[1739641708316,0.03757259,193.7,193.68,5.1623]
[1739641708921,0.03757259,193.7,193.67,0.03294214]
[1739641709122,0.03757259,193.7,193.68,5.1621]
[1739641709423,0.03757259,193.7,193.67,0.03294214]
[1739641710421,0.03757259,193.7,193.68,5.1623]
[1739641711322,0.03757259,193.7,193.67,0.03294214]
[1739641711514,0.03757259,193.7,193.69,5.1621]
[1739641720630,9.20759546,193.75,193.71,5.1614]
[1739641720830,14.36759546,193.77,193.7,9.20759546]
[1739641721029,14.36759546,193.77,193.71,3.2475]
[1739641721330,14.36759546,193.77,193.72,9.20759546]
[1739641721826,0.03576643,193.76,193.73,5.1956542]
[1739641724733,0.03576643,193.76,193.73,0.0348542]
[1739641724934,0.03576643,193.76,193.73,5.1958542]
[1739641725134,0.03576643,193.76,193.74,9.20759546]
[1739641725535,9.20759546,193.75,193.73,0.0348542]
[1739641727334,0.03576643,193.76,193.73,0.0348542]
[1739641727934,5.1605,193.75,193.73,0.0348542]
[1739641728531,5.1607,193.74,193.73,0.0348542]
[1739641732641,9.20759546,193.75,193.73,0.0348542]
[1739641732940,14.36809546,193.75,193.73,0.0348542]
[1739641734040,9.20759546,193.75,193.73,0.0348542]
[1739641734241,0.03576643,193.76,193.73,0.0348542]
[1739641736147,5.19596643,193.76,193.73,0.0348542]
[1739641737247,5.1605,193.75,193.73,0.0348542]
[1739641739148,5.19596643,193.76,193.73,0.0348542]
[1739641740947,5.1605,193.75,193.73,0.0348542]
[1739641741646,5.19606643,193.76,193.73,0.0348542]
[1739641742543,0.03576643,193.76,193.73,5.1956542]
[1739641742847,0.03576643,193.76,193.73,0.0348542]
[1739641743342,0.03576643,193.76,193.74,5.1605]
[1739641744344,0.03576643,193.76,193.73,0.0348542]
[1739641744647,9.20759546,193.75,193.73,0.0348542]
[1739641745348,5.1607,193.74,193.73,0.0348542]
[1739641747546,14.36809546,193.75,193.73,0.0348542]
[1739641747753,9.20759546,193.75,193.73,0.0348542]
[1739641747947,0.03576643,193.76,193.74,5.1607]
[1739641748150,0.03576643,193.76,193.73,0.0348542]
[1739641748643,0.03576643,193.76,193.74,9.20759546]
[1739641749450,0.03576643,193.76,193.74,10.77539546]
[1739641750248,0.03576643,193.76,193.75,5.1605]
[1739641750752,0.03576643,193.76,193.73,0.0348542]
[1739641752748,0.03576643,193.76,193.74,5.1607]
[1739641753145,0.03576643,193.76,193.73,0.0348542]
[1739641754056,0.03576643,193.76,193.73,5.1958542]
[1739641755055,0.03576643,193.76,193.73,0.0348542]
[1739641757059,0.03576643,193.76,193.73,5.1957542]
[1739641758059,0.03576643,193.76,193.73,6.8305542]
[1739641758358,5.19596643,193.76,193.73,1.6696542]
[1739641758959,14.40356189,193.76,193.73,1.6696542]
[1739641759463,9.24336189,193.76,193.73,1.6696542]
[1739641759656,5.1605,193.75,193.73,1.6696542]
[1739641761761,5.1607,193.74,193.73,0.0348542]
[1739641762457,14.36829546,193.74,193.73,0.0348542]
[1739641762958,5.1607,193.74,193.73,0.0348542]
[1739641764054,14.36829546,193.74,193.73,0.0348542]
[1739641765355,5.1624,193.68,193.65,1.554]
[1739641765558,14.36999546,193.68,193.65,1.554]
[1739641765759,9.20759546,193.68,193.65,1.554]
[1739641766560,9.24200906,193.68,193.65,1.58907902]
[1739641767056,0.0344136,193.68,193.65,1.58907902]
[1739641767461,0.0344136,193.68,193.65,6.75217902]
[1739641769062,0.0344136,193.68,193.66,5.1629]
[1739641770963,0.0344136,193.68,193.65,1.58907902]
[1739641771163,0.0344136,193.68,193.67,5.1626]
[1739641771461,9.20759546,193.74,193.66,9.20759546]
[1739641771663,9.20759546,193.78,193.7,9.20759546]
[1739641771863,9.20759546,193.78,193.72,9.20759546]
[1739641772665,0.03362293,193.77,193.73,0.03576319]
[1739641773166,0.03362293,193.77,193.73,5.19676319]
[1739641774967,0.03362293,193.77,193.73,0.03576319]
[1739641775172,0.03362293,193.77,193.74,5.1607]
[1739641779065,5.19362293,193.77,193.73,0.03576319]
[1739641780871,0.03362293,193.77,193.73,0.03576319]
[1739641781070,5.1603,193.76,193.73,0.03576319]
[1739641781570,0.03362293,193.77,193.73,0.03576319]
[1739641781766,5.19362293,193.77,193.73,0.03576319]
[1739641782671,5.1602,193.76,193.73,0.03576319]
[1739641783571,0.03362293,193.77,193.73,0.03576319]
[1739641783770,5.19362293,193.77,193.73,0.03576319]
[1739641786973,5.1603,193.76,193.73,0.03576319]
[1739641790377,5.1605,193.75,193.73,0.03576319]
[1739641791678,5.1602,193.76,193.73,5.19666319]
[1739641794682,5.1607,193.74,193.73,0.03576319]
[1739641794878,14.36829546,193.74,193.73,0.03576319]
[1739641802179,9.20759546,193.74,193.73,0.03576319]
[1739641804586,14.36829546,193.74,193.73,0.03576319]
[1739641805584,9.20759546,193.74,193.73,0.03576319]
[1739641806482,14.36829546,193.74,193.73,0.03576319]
[1739641806787,9.20759546,193.74,193.66,1.6245]
[1739641806982,9.20759546,193.7,193.66,6.7873]
[1739641807287,9.20759546,193.68,193.66,1.6245]
[1739641807490,9.20759546,193.68,193.62,9.20759546]
[1739641807782,9.24112903,193.68,193.65,1.59130058]
[1739641807985,9.24112903,193.68,193.65,0.03730058]
[1739641808391,9.20759546,193.66,193.65,0.03730058]
[1739641808590,14.37049546,193.66,193.65,0.03730058]
[1739641814094,9.20759546,193.66,193.65,0.03730058]
[1739641820692,0.03353357,193.68,193.65,0.03730058]
[1739641820892,9.24112903,193.68,193.65,5.20040058]
[1739641821197,9.24112903,193.68,193.65,0.03730058]
[1739641821798,14.40342903,193.68,193.65,0.03730058]
[1739641822996,9.24112903,193.68,193.65,0.03730058]
[1739641825890,9.24112903,193.68,193.65,5.20040058]
[1739641827396,9.24112903,193.68,193.66,5.1628]
[1739641828803,0.03353357,193.68,193.67,5.1626]
[1739641845011,0.03353357,193.68,193.66,6.7975]
[1739641846109,0.03353357,193.68,193.66,1.6347]
[1739641846308,9.24112903,193.68,193.65,0.03730058]
[1739641848017,14.40372903,193.68,193.65,0.03730058]
[1739641848313,9.24112903,193.68,193.65,0.03730058]
[1739641849021,14.40352903,193.68,193.65,0.03730058]
[1739641851223,14.40352903,193.68,193.65,5.20040058]
[1739641851823,0.03353357,193.68,193.65,5.20040058]
[1739641852218,0.03353357,193.68,193.66,9.20759546]
[1739641852620,0.03353357,193.68,193.67,5.1626]
[1739641853925,9.20759546,193.72,193.66,9.20759546]
[1739641854126,9.20759546,193.72,193.68,5.1622]
[1739641854826,14.36889546,193.72,193.68,5.1622]
[1739641855328,14.40529889,193.72,193.68,5.1622]
[1739641855726,14.40529889,193.72,193.66,9.20759546]
[1739641855926,14.40529889,193.72,193.67,5.1626]
[1739641856128,14.40529889,193.72,193.66,9.20759546]
[1739641857125,14.40529889,193.72,193.68,5.1623]
[1739641858123,5.1616,193.71,193.67,5.1625]
[1739641858528,9.24399889,193.72,193.67,5.1625]
[1739641858729,14.40529889,193.72,193.67,5.1625]
[1739641859829,14.40529889,193.72,193.66,9.20759546]
[1739641860030,14.40529889,193.72,193.68,5.1623]
[1739641867941,9.24399889,193.72,193.69,5.162]
[1739641870441,0.03640343,193.72,193.69,5.162]
[1739641872149,0.03640343,193.72,193.7,5.1618]
[1739641872637,0.03640343,193.72,193.69,5.19824566]
[1739641873647,0.03640343,193.72,193.69,0.03624566]
[1739641874045,0.03640343,193.72,193.69,5.19814566]
[1739641876151,0.03640343,193.72,193.7,5.1617]
[1739641876348,0.03640343,193.72,193.69,0.03624566]
[1739641876550,0.03640343,193.72,193.69,5.19824566]
[1739641877151,0.03640343,193.72,193.7,5.1616]
[1739641877346,0.03640343,193.72,193.69,0.03624566]
[1739641877743,0.03640343,193.72,193.71,5.1615]
[1739641878550,0.03640343,193.72,193.69,0.03624566]
[1739641879054,0.03640343,193.72,193.7,5.1617]
[1739641882356,0.03640343,193.72,193.71,5.1615]
[1739641883760,0.03640343,193.72,193.69,0.03624566]
[1739641885162,5.1615,193.71,193.69,0.03624566]
[1739641885356,0.03640343,193.72,193.69,0.03624566]
[1739641885758,5.19770343,193.72,193.69,0.03624566]
[1739641888066,0.03640343,193.72,193.69,0.03624566]
[1739641889564,0.03640343,193.72,193.69,5.19804566]
[1739641889867,0.03640343,193.72,193.69,0.03624566]
[1739641891974,0.03640343,193.72,193.7,5.1618]
[1739641894381,0.03640343,193.72,193.71,5.1615]
[1739641898181,0.03640343,193.72,193.69,0.03624566]
[1739641898682,0.03640343,193.72,193.7,5.1618]
[1739641899270,0.03640343,193.72,193.71,5.1615]
[1739641899474,0.03640343,193.72,193.69,0.03624566]
[1739641899878,0.03640343,193.72,193.69,5.19814566]
[1739641901782,9.24399889,193.72,193.69,0.03624566]
[1739641902685,14.36939546,193.7,193.69,0.03624566]
[1739641907876,9.20759546,193.7,193.69,0.03624566]
[1739641910287,14.36939546,193.7,193.69,0.03624566]
[1739641921994,9.20759546,193.7,193.69,0.03624566]
[1739641922495,14.36939546,193.7,193.69,0.03624566]
[1739641923494,9.20759546,193.7,193.61,1.5138]
[1739641923694,5.1632,193.65,193.61,1.5138]
[1739641924094,5.1632,193.65,193.6,9.20759546]
[1739641924291,5.1635,193.64,193.59,6.8302]
[1739641924496,9.20759546,193.64,193.59,5.1646]
[1739641924796,0.03885058,193.63,193.6,0.0355272]
[1739641925298,5.20255058,193.63,193.6,0.0355272]
[1739641925498,9.20759546,193.62,193.6,0.0355272]
[1739641926399,14.37159546,193.62,193.6,0.0355272]
[1739641927892,5.1642,193.61,193.6,0.0355272]
[1739641935806,9.20759546,193.62,193.53,1.5213]
[1739641936105,9.20759546,193.56,193.53,1.5213]
[1739641936304,9.20759546,193.54,193.48,9.20759546]
[1739641936498,9.20759546,193.52,193.48,9.20759546]
[1739641936803,9.20759546,193.52,193.46,9.20759546]
[1739641937000,9.24213787,193.52,193.49,0.03723689]
[1739641937601,9.20759546,193.5,193.49,0.03723689]
[1739641945914,14.37469546,193.5,193.49,0.03723689]
[1739641947419,9.20759546,193.5,193.42,5.169]
[1739641947618,9.20759546,193.45,193.4,9.20759546]
[1739641948110,9.20759546,193.45,193.42,5.1691]
[1739641948518,9.24075505,193.45,193.42,5.20595087]
[1739641949714,9.24075505,193.45,193.42,0.03685087]
[1739641950018,9.20759546,193.43,193.42,0.03685087]
[1739641951119,9.24075505,193.45,193.42,0.03685087]
[1739641952216,9.20759546,193.43,193.42,0.03685087]
[1739641953320,14.37659546,193.43,193.42,0.03685087]
[1739641953711,9.20759546,193.43,193.42,0.03685087]
[1739641954827,14.37659546,193.43,193.42,0.03685087]
[1739641958729,14.40945505,193.45,193.42,0.03685087]
[1739641958925,9.24075505,193.45,193.42,0.03685087]
[1739641959331,0.03315959,193.45,193.42,0.03685087]
[1739641960632,0.03315959,193.45,193.42,5.20585087]
[1739641961223,0.03315959,193.45,193.43,5.169]